[Event "57th Biel Festival MTO 2024"]
[White "Narayanan,Samrug"]
[Black "Monteverde,Jonathan"]
[Site "Biel"]
[Round "1.41"]
[Annotator "RC"]
[Result "1-0"]
[Date "2024.07.15"]
[WhiteElo "2335"]
[BlackElo "2052"]
[PlyCount "85"]
[TimeControl "60"]

1. e4 {[%emt 0:0:7]} c5 {[%emt 0:0:18]} 2. Nf3 {[%emt 0:0:6]} d6 {[%emt 0:0:6]} 3. Bb5+ {[%emt 0:0:7]} Nd7 {[%emt 0:0:10]} 4. a4 {[%emt 0:0:5]} Ngf6 {[%emt 0:5:14]} 5. Nc3 {[%emt 0:0:9]} a6 {[%emt 0:10:41]} 6. Be2 {[%emt 0:0:8]} g6 {[%emt 0:3:2]} 7. a5 {[%emt 0:0:21]} Bg7 {[%emt 0:0:33]} 8. O-O {[%emt 0:0:7]} e5 {[%emt 0:3:27]} 9. d3 {[%emt 0:0:14]} h6 {[%emt 0:1:40]} 10. Nd2 {[%emt 0:0:31]} O-O {[%emt 0:1:11]} 11. Nc4 {[%emt 0:0:7]} Ne8 {[%emt 0:21:39]} 12. f4 {[%emt 0:0:43]} exf4 {[%emt 0:13:53]} 13. Bxf4 {[%emt 0:0:50]} Ne5 {[%emt 0:0:21]} 14. Nxe5 {[%emt 0:0:39]} Bxe5 {[%emt 0:4:41]} 15. Bxe5 {[%emt 0:4:40]} dxe5 {[%emt 0:1:7]} 16. Qd2 {[%emt 0:0:8]} Kg7 {[%emt 0:4:41]} 17. Na4 {[%emt 0:3:57]} Be6 {[%emt 0:0:29]} 18. Nb6 {[%emt 0:1:23]} Rb8 {[%emt 0:6:48]} 19. Rf2 {[%emt 0:3:28]} Nf6 {[%emt 0:5:51]} 20. Raf1 {[%emt 0:4:57]} Nxe4 {[%emt 0:2:31]} 21. Qe3 {[%emt 0:0:19]} Nxf2 {[%emt 0:0:14]} 22. Qxe5+ {[%emt 0:0:18]} Qf6 {[%emt 0:2:33]} 23. Qxf6+ {[%emt 0:0:55]} Kxf6 {[%emt 0:0:10]} 24. Rxf2+ {[%emt 0:0:4]} Kg7 {[%emt 0:0:13]} 25. Bf3 {[%emt 0:0:5]} f5 {[%emt 0:3:30]} 26. Re2 {[%emt 0:1:20]} Rfe8 {[%emt 0:1:16]} 27. Re5 {[%emt 0:0:8]} Kf6 {[%emt 0:10:11]} 28. Rxc5 {[%emt 0:0:7]} Re7 {[%emt 0:0:12]} 29. d4 {[%emt 0:0:26]} Rd8 {[%emt 0:0:47]} 30. d5 {[%emt 0:1:18]} Bf7 {[%emt 0:0:9]} 31. Kf2 {[%emt 0:0:24]} g5 {[%emt 0:0:36]} 32. g3 {[%emt 0:2:23]} g4 {[%emt 0:0:35]} 33. Be2 {[%emt 0:0:22]} Re5 {[%emt 0:1:9]} 34. c4 {[%emt 0:0:34]} Re7 {[%emt 0:0:36]} 35. b4 {[%emt 0:0:51]} Rde8 {[%emt 0:0:28]} 36. Bf1 {[%emt 0:0:52]} Re3 {[%emt 0:1:9]} 37. d6 {[%emt 0:0:29]} Rf3+ {[%emt 0:4:19]} 38. Kg2 {[%emt 0:0:9]} Re1 {[%emt 0:0:9]} 39. d7 {[%emt 0:0:4]} Rd1 {[%emt 0:0:8]} 40. Nd5+ {[%emt 0:4:25]} Bxd5 {[%emt 0:0:51]} 41. d8=Q+ {[%emt 0:50:6]} Kg6 {[%emt 0:52:21]} 42. Rxd5 {[%emt 0:0:12]} Rdxf1 {[%emt 0:0:15]} 43. Rd6+ {[%emt 0:0:7]} 1-0

[Event "57th Biel Festival MTO 2024"]
[White "Saine,Zachary"]
[Black "Munguntuul,Batkhuyag"]
[Site "Biel"]
[Round "1.42"]
[Annotator "TA"]
[Result "1/2-1/2"]
[Date "2024.07.15"]
[WhiteElo "2035"]
[BlackElo "2376"]
[PlyCount "106"]
[TimeControl "60"]

{[%evp 14,106,22,18,47,29,36,31,37,7,37,0,15,0,18,0,0,0,0,0,0,0,-11,0,0,0,43,46,84,75,61,25,58,66,67,69,64,-12,0,0,0,0,0,0,0,0,0,0,0,0,0,0,0,0,0,0,0,0,0,0,0,0,0,-282,-272,-253,-253,-528,-518,-379,0,0,0,0,0,0,0,0,0,0,0,0,0,-1,0,-8,0,0,0,0,0,0,0,0,0]} 1. e4 {[%emt 0:7:44]} c5 {[%emt 0:1:12]} 2. Nf3 {[%emt 0:0:13]} e6 {[%emt 0:0:8]} 3. d4 {[%emt 0:0:5]} cxd4 {[%emt 0:0:3]} 4. Nxd4 {[%emt 0:0:8]} Nc6 {[%emt 0:0:3]} 5. Nc3 {[%emt 0:0:50]} Qc7 {[%emt 0:0:4]} 6. Be3 {[%emt 0:1:6]} a6 {[%emt 0:0:6]} 7. a3 {[%emt 0:1:42]} b5 {[%emt 0:3:38]} 8. Nxc6 {[%emt 0:2:15]} Qxc6 {[%emt 0:3:23]} 9. Bd3 {[%emt 0:1:34]} Bb7 {[%emt 0:0:51]} 10. Qd2 {[%emt 0:2:57]} Nf6 {[%emt 0:3:41] White is slightly better.} 11. f3 {[%emt 0:13:48]} b4 {[%emt 0:7:58]} 12. Ne2 {[%emt 0:12:15]} bxa3 {[%emt 0:2:19]} 13. bxa3 {[%emt 0:0:8]} d5 {[%emt 0:6:13]} 14. e5 {[%emt 0:4:6]} Nd7 {[%emt 0:0:7]} 15. Nd4 {[%emt 0:3:23]} Qc7 {[%emt 0:5:23]} 16. f4 {[%emt 0:0:27]} Be7 {[%emt 0:4:48]} 17. O-O {[%emt 0:6:24]} O-O {[%emt 0:2:14]} 18. a4 {[%emt 0:34:39]} Nc5 {[%emt 0:4:45]} 19. a5 {[%emt 0:1:39]} f5 {[%emt 0:11:52]} 20. Rfb1 {[%emt 0:1:49]} Bc8 {[%emt 0:4:1]} 21. Rb6 {[%emt 0:1:9]} Bd7 {[%emt 0:0:9]} 22. Rab1 {[%emt 0:1:34]} (22. Qb4 {with more complications.} Kf7 23. Qc3 Qc8 24. Qe1 )Rfc8 {[%emt 0:4:53]} 23. Qe2 {[%emt 0:3:12]} Nxd3 {[%emt 0:7:9]} 24. Qxd3 {[%emt 0:1:14][%cal Ob6b7]} Bc5 {[%emt 0:0:43]} 25. Rxa6 {[%emt 0:2:26] White has more active pieces.} ({Better is} 25. Rb7 $14 Qd8 26. Nxf5 Bxe3+ 27. Nxe3 )Rxa6 {[%emt 0:2:10]} (25... Rab8 {is interesting.} 26. Rxb8 Rxb8 27. Kf2 Qc8 )26. Qxa6 {[%emt 0:0:4]} Bxd4 {[%emt 0:0:23]} 27. Bxd4 {[%emt 0:0:4]} Qxc2 {[%emt 0:0:8]} 28. Qb7 {[%emt 0:2:11][%cal Oa5a6]} Qe4 {[%emt 0:5:47]} 29. Bf2 {[%emt 0:5:0]} Qxf4 {[%emt 0:2:28] [#] ( -> ...Rc1+)} 30. Rf1 {[%emt 0:0:8]} Qa4 {[%emt 0:1:28][%cal Od5d4]} 31. a6 {[%emt 0:0:23]} d4 {[%emt 0:2:10] Strongly threatening ...d3.} 32. a7 {[%emt 0:0:49]} d3 {[%emt 0:0:4]} 33. Be3 {[%emt 0:0:40] Prevents d2} h6 {[%emt 0:2:45]} 34. h3 {[%emt 0:0:41]} Re8 {[%emt 0:9:14]} 35. Rc1 {[%emt 0:0:23] Inhibits Bc6. Black must now prevent Kh1.} d2 $1 {[%emt 0:0:11]} 36. Bxd2 {[%emt 0:0:43]} Qd4+ {[%emt 0:0:1]} 37. Kh2 {[%emt 0:0:19]} Qxd2 {[%emt 0:0:6]} 38. a8=Q $4 {[%emt 0:0:13][%mdl 8192]} (38. Rc7 $11 {and White has nothing to worry.} Qf4+ 39. Kg1 (39. Kh1 Qf1+ 40. Kh2 Qf4+ 41. Kg1 Qe3+ 42. Kh2 Qxe5+ 43. Kh1 Bb5 $11 ))Qf4+ $19 {[%emt 0:2:3]} 39. g3 {[%emt 0:0:4]} Qxc1 {[%emt 0:0:21]} 40. Qa2 {[%emt 0:0:36]} (40. Qh1 Qc4 41. Qag2 )Bc6 {[%emt 0:1:2][%csl Gc6][%cal Rc1h1]} 41. Qbb1 {[%emt 0:2:10] [#] White is weak on the light squares} Qe3 {[%emt 0:3:55]} (41... Qg5 $1 $19 42. h4 Qh5 )42. Qxf5 $11 {[%emt 0:2:28] The position is equal.} Kh8 {[%emt 0:9:7]} (42... Bd5 $5 43. Qaf2 $8 Qxf2+ 44. Qxf2 Ra8 $11 )43. Qfc2 {[%emt 0:8:54] Some like it hot} Rd8 {[%emt 0:5:12]} 44. Qxc6 {[%emt 0:21:42]} Rd2+ {[%emt 0:2:38]} (44... Qxe5 $2 {perishes.} 45. h4 $18 (45. Qcxe6 Rd2+ 46. Kh1 Rd1+ 47. Kg2 Rd2+ 48. Kh1 Rd1+ 49. Kh2 Rd2+ 50. Qxd2 Qxe6 $11 ))45. Qxd2 $1 {[%emt 0:0:5]} Qxd2+ {[%emt 0:0:9][%mdl 4096] Endgame. KQ-KQ} 46. Qg2 {[%emt 0:0:4]} Qe3 {[%emt 0:0:59]} 47. Qb2 {[%emt 0:0:5]} h5 {[%emt 0:1:39][%cal Oh5h4]} 48. Qb8+ {[%emt 0:1:58]} Kh7 {[%emt 0:0:2] And now ...Qf2+ would win.} 49. Qd6 {[%emt 0:0:28]} h4 {[%emt 0:4:57]} 50. gxh4 {[%emt 0:0:45]} Qf2+ {[%emt 0:0:11]} 51. Kh1 {[%emt 0:0:4]} Qf3+ {[%emt 0:0:57]} 52. Kh2 $1 {[%emt 0:0:13]} Qf2+ {[%emt 0:0:9]} 53. Kh1 {[%emt 0:0:5]} Qf3+ {[%emt 0:0:5] Weighted Error Value: White=0.24 (precise) /Black=0.24 (precise) .  Loses game:     	White=1     	---        Missed win:     	---       	Black=1      Mistake:       	White=2     	---        Inaccurate:     	White=3     	Black=4      OK:         	White=13    	Black=20     Best:        	White=5     	Black=6      Strong:       	White=2     	Black=1} 1/2-1/2

[Event "57th Biel Festival MTO 2024"]
[White "Padmini,Rout"]
[Black "Kwiatkowski,Jakub"]
[Site "Biel"]
[Round "1.43"]
[Annotator "RC"]
[Result "1-0"]
[Date "2024.07.15"]
[WhiteElo "2348"]
[BlackElo "2024"]
[PlyCount "69"]
[TimeControl "60"]

1. Nf3 {[%emt 0:0:11]} Nf6 {[%emt 0:0:14]} 2. g3 {[%emt 0:0:21]} d5 {[%emt 0:0:11]} 3. Bg2 {[%emt 0:0:8]} Bf5 {[%emt 0:0:21]} 4. O-O {[%emt 0:0:39]} h6 {[%emt 0:0:47]} 5. d3 {[%emt 0:2:14]} e6 {[%emt 0:7:21]} 6. c4 {[%emt 0:1:33]} c6 {[%emt 0:1:44]} 7. cxd5 {[%emt 0:1:45]} cxd5 {[%emt 0:1:23]} 8. Qb3 {[%emt 0:1:3]} Qc8 {[%emt 0:13:56]} 9. Nd4 {[%emt 0:4:33]} Bh7 {[%emt 0:4:11]} 10. Bf4 {[%emt 0:2:14]} Nc6 {[%emt 0:10:10]} 11. Rc1 {[%emt 0:3:38]} Qd7 {[%emt 0:1:48]} 12. Nxc6 {[%emt 0:6:44]} bxc6 {[%emt 0:1:21]} 13. Nd2 {[%emt 0:1:52]} Rc8 {[%emt 0:12:44]} 14. Nf3 {[%emt 0:8:51]} Bd6 {[%emt 0:4:51]} 15. Ne5 {[%emt 0:6:42]} Bxe5 {[%emt 0:2:17]} 16. Bxe5 {[%emt 0:0:17]} O-O {[%emt 0:1:54]} 17. Bxf6 {[%emt 0:1:49]} gxf6 {[%emt 0:0:12]} 18. Rc5 {[%emt 0:0:12]} Rb8 {[%emt 0:9:30]} 19. Qc3 {[%emt 0:3:27]} Qb7 {[%emt 0:3:20]} 20. b3 {[%emt 0:2:32]} Qb4 {[%emt 0:7:26]} 21. Rc1 {[%emt 0:4:16]} Rb5 {[%emt 0:8:38]} 22. Rxc6 {[%emt 0:1:39]} Qxc3 {[%emt 0:2:19]} 23. R1xc3 {[%emt 0:0:9]} a5 {[%emt 0:1:2]} 24. Ra6 {[%emt 0:1:0]} Rfb8 {[%emt 0:1:5]} 25. Rc7 {[%emt 0:1:25]} Bg6 {[%emt 0:1:34]} 26. f4 {[%emt 0:5:45]} Kg7 {[%emt 0:2:56]} 27. Rxe6 {[%emt 0:1:27]} a4 {[%emt 0:0:16]} 28. Ree7 {[%emt 0:1:10]} axb3 {[%emt 0:1:12]} 29. axb3 {[%emt 0:0:6]} f5 {[%emt 0:1:19]} 30. Bf3 {[%emt 0:1:14]} Kf6 {[%emt 0:1:26]} 31. Kf2 {[%emt 0:1:53]} d4 {[%emt 0:0:41]} 32. Red7 {[%emt 0:1:3]} Rxb3 {[%emt 0:0:52]} 33. h4 {[%emt 0:1:10]} h5 {[%emt 0:0:19]} 34. Rd6+ {[%emt 0:1:43]} Kg7 {[%emt 0:0:18]} 35. Rxd4 {[%emt 0:0:6]} 1-0

[Event "57th Biel Festival MTO 2024"]
[White "Chen,Muxi"]
[Black "Ayush Sharma"]
[Site "Biel"]
[Round "1.44"]
[Annotator "RC"]
[Result "0-1"]
[Date "2024.07.15"]
[WhiteElo "1954"]
[BlackElo "2325"]
[PlyCount "66"]
[TimeControl "60"]

1. e4 {[%emt 0:0:17]} c5 {[%emt 0:0:8]} 2. Nf3 {[%emt 0:0:23]} d6 {[%emt 0:0:5]} 3. d4 {[%emt 0:0:18]} cxd4 {[%emt 0:0:6]} 4. Nxd4 {[%emt 0:0:8]} Nf6 {[%emt 0:0:3]} 5. Nc3 {[%emt 0:0:13]} a6 {[%emt 0:0:4]} 6. Be2 {[%emt 0:0:7]} e5 {[%emt 0:0:29]} 7. Nb3 {[%emt 0:0:8]} Be7 {[%emt 0:0:52]} 8. Be3 {[%emt 0:0:14]} Be6 {[%emt 0:0:33]} 9. Nd5 {[%emt 0:0:23]} Nbd7 {[%emt 0:1:5]} 10. Qd3 {[%emt 0:6:34]} Bxd5 {[%emt 0:3:3]} 11. exd5 {[%emt 0:0:8]} Rc8 {[%emt 0:2:9]} 12. c4 {[%emt 0:12:39]} O-O {[%emt 0:3:50]} 13. O-O {[%emt 0:7:21]} a5 {[%emt 0:7:41]} 14. Rad1 {[%emt 0:14:1]} a4 {[%emt 0:3:48]} 15. Nd2 {[%emt 0:0:18]} Nc5 {[%emt 0:12:45]} 16. Qa3 {[%emt 0:16:49]} Nfd7 {[%emt 0:3:42]} 17. Nb1 {[%emt 0:7:30]} Bg5 {[%emt 0:6:26]} 18. Bxg5 {[%emt 0:7:49]} Qxg5 {[%emt 0:0:8]} 19. Nc3 {[%emt 0:0:16]} f5 {[%emt 0:6:54]} 20. Nb5 {[%emt 0:5:22]} Qe7 {[%emt 0:6:43]} 21. b4 {[%emt 0:7:45]} axb3 {[%emt 0:0:24]} 22. axb3 {[%emt 0:0:10]} Nf6 {[%emt 0:7:4]} 23. b4 {[%emt 0:1:54]} Ncd7 {[%emt 0:0:7]} 24. Qb3 {[%emt 0:3:49]} Kh8 {[%emt 0:2:44]} 25. Ra1 {[%emt 0:2:58]} f4 {[%emt 0:6:27]} 26. f3 {[%emt 0:6:5]} Qd8 {[%emt 0:8:37]} 27. Kh1 {[%emt 0:1:16]} Nh5 {[%emt 0:1:13]} 28. Nxd6 {[%emt 0:2:50]} Ng3+ {[%emt 0:0:32]} 29. Kg1 {[%emt 0:1:9]} Nxe2+ {[%emt 0:1:11]} 30. Kf2 {[%emt 0:0:5]} Nd4 {[%emt 0:0:46]} 31. Qd3 {[%emt 0:0:56]} Rb8 {[%emt 0:2:11]} 32. Ne4 {[%emt 0:1:27]} Qb6 {[%emt 0:0:53]} 33. Rfb1 {[%emt 0:0:28]} Nc2+ {[%emt 0:4:26]} 0-1

[Event "57th Biel Festival MTO 2024"]
[White "Sukandar,Irine Kharisma"]
[Black "Selinga,Jan"]
[Site "Biel"]
[Round "1.45"]
[Annotator "RC"]
[Result "1-0"]
[Date "2024.07.15"]
[WhiteElo "2338"]
[BlackElo "2023"]
[PlyCount "111"]
[TimeControl "60"]

1. Nf3 {[%emt 0:1:22]} g6 {[%emt 0:1:2]} 2. e4 {[%emt 0:1:23]} c5 {[%emt 0:0:53]} 3. d4 {[%emt 0:4:7]} cxd4 {[%emt 0:0:5]} 4. Nxd4 {[%emt 0:0:23]} Bg7 {[%emt 0:1:1]} 5. c4 {[%emt 0:5:20]} Nc6 {[%emt 0:2:11]} 6. Nc2 {[%emt 0:0:32]} Nf6 {[%emt 0:1:26]} 7. Nc3 {[%emt 0:0:18]} O-O {[%emt 0:0:57]} 8. Be2 {[%emt 0:0:20]} b6 {[%emt 0:2:14]} 9. O-O {[%emt 0:0:30]} Bb7 {[%emt 0:0:50]} 10. Rb1 {[%emt 0:2:33]} Rc8 {[%emt 0:1:22]} 11. b3 {[%emt 0:3:44]} d6 {[%emt 0:3:14]} 12. Bb2 {[%emt 0:2:17]} Nb8 {[%emt 0:8:24]} 13. f3 {[%emt 0:5:2]} a6 {[%emt 0:10:32]} 14. Kh1 {[%emt 0:3:39]} Nbd7 {[%emt 0:7:35]} 15. Qd2 {[%emt 0:1:12]} h5 {[%emt 0:4:16]} 16. Nb4 {[%emt 0:4:19]} a5 {[%emt 0:6:1]} 17. Nbd5 {[%emt 0:1:55]} Nxd5 {[%emt 0:2:50]} 18. exd5 {[%emt 0:0:27]} Nc5 {[%emt 0:3:25]} 19. Nb5 {[%emt 0:2:43]} Ra8 {[%emt 0:4:49]} 20. Bxg7 {[%emt 0:2:59]} Kxg7 {[%emt 0:1:47]} 21. Rbe1 {[%emt 0:0:22]} Bc8 {[%emt 0:2:20]} 22. Bd3 {[%emt 0:1:23]} Bd7 {[%emt 0:2:43]} 23. Nd4 {[%emt 0:0:29]} e5 {[%emt 0:5:50]} 24. dxe6 {[%emt 0:0:25]} fxe6 {[%emt 0:0:14]} 25. Bb1 {[%emt 0:2:16]} Qf6 {[%emt 0:4:15]} 26. Ne2 {[%emt 0:1:11]} d5 {[%emt 0:10:32]} 27. Rc1 {[%emt 0:16:0]} dxc4 {[%emt 0:2:46]} 28. Rxc4 {[%emt 0:0:27]} Bb5 {[%emt 0:4:2]} 29. Rf4 {[%emt 0:1:23]} Qe7 {[%emt 0:3:21]} 30. Re1 {[%emt 0:3:13]} e5 {[%emt 0:1:33]} 31. Rxf8 {[%emt 0:1:46]} Qxf8 {[%emt 0:0:25]} 32. Nc3 {[%emt 0:0:54]} Bc6 {[%emt 0:5:7]} 33. Rxe5 {[%emt 0:1:41]} Re8 {[%emt 0:2:36]} 34. Rxe8 {[%emt 0:15:22]} Qxe8 {[%emt 0:0:41]} 35. Qd4+ {[%emt 0:1:0]} Kh6 {[%emt 0:1:23]} 36. h3 {[%emt 0:4:13]} Qe1+ {[%emt 0:2:13]} 37. Kh2 {[%emt 0:0:4]} h4 {[%emt 0:0:20]} 38. Qd6 {[%emt 0:18:27]} Ne6 {[%emt 0:1:17]} 39. Be4 {[%emt 0:1:57]} Qxc3 {[%emt 0:2:6]} 40. Qxe6 {[%emt 0:1:30]} Be8 {[%emt 0:0:53]} 41. Qxe8 {[%emt 0:11:20]} Qc7+ {[%emt 0:1:18]} 42. f4 {[%emt 0:0:21]} Qxf4+ {[%emt 0:0:24]} 43. Kg1 {[%emt 0:0:9]} Qc1+ {[%emt 0:3:48]} 44. Kf2 {[%emt 0:0:8]} Qb2+ {[%emt 0:1:17]} 45. Kf3 {[%emt 0:0:57]} Qc3+ {[%emt 0:2:38]} 46. Ke2 {[%emt 0:0:17]} Qb2+ {[%emt 0:0:36]} 47. Kd3 {[%emt 0:0:34]} Qb1+ {[%emt 0:0:11]} 48. Kd2 {[%emt 0:0:50]} Qb2+ {[%emt 0:1:28]} 49. Bc2 {[%emt 0:0:10]} Qf6 {[%emt 0:1:16]} 50. Qe3+ {[%emt 0:1:7]} Kh7 {[%emt 0:1:2]} 51. Ke2 {[%emt 0:0:21]} Qd8 {[%emt 0:1:5]} 52. Bd3 {[%emt 0:1:40]} Qf6 {[%emt 0:0:45]} 53. Qe4 {[%emt 0:0:33]} Qb2+ {[%emt 0:0:34]} 54. Kf3 {[%emt 0:0:18]} Qf6+ {[%emt 0:0:21]} 55. Kg4 {[%emt 0:0:19]} Kg7 {[%emt 0:0:48]} 56. Qxg6+ {[%emt 0:0:15]} 1-0

[Event "57th Biel Festival MTO 2024"]
[White "Matsumura,Cocoro"]
[Black "Ritviz,Parab"]
[Site "Biel"]
[Round "1.46"]
[Annotator "RC"]
[Result "0-1"]
[Date "2024.07.15"]
[WhiteElo "2032"]
[BlackElo "2334"]
[PlyCount "60"]
[TimeControl "60"]

1. e4 {[%emt 0:0:3]} c5 {[%emt 0:0:8]} 2. Nf3 {[%emt 0:0:5]} a6 {[%emt 0:0:8]} 3. Nc3 {[%emt 0:0:13]} d6 {[%emt 0:11:5]} 4. d4 {[%emt 0:0:43]} cxd4 {[%emt 0:0:9]} 5. Nxd4 {[%emt 0:0:4]} e6 {[%emt 0:10:24]} 6. Be3 {[%emt 0:3:47]} Nf6 {[%emt 0:10:21]} 7. g4 {[%emt 0:1:52]} e5 {[%emt 0:13:49]} 8. Nf5 {[%emt 0:0:17]} g6 {[%emt 0:0:16]} 9. g5 {[%emt 0:0:38]} gxf5 {[%emt 0:1:12]} 10. gxf6 {[%emt 0:0:5]} f4 {[%emt 0:0:12]} 11. Bc1 {[%emt 0:18:10]} Be6 {[%emt 0:11:4]} 12. b3 {[%emt 0:5:18]} Nd7 {[%emt 0:11:17]} 13. Bb2 {[%emt 0:4:50]} Nxf6 {[%emt 0:0:35]} 14. Qd3 {[%emt 0:0:28]} Qb6 {[%emt 0:3:23]} 15. Bh3 {[%emt 0:3:36]} Rc8 {[%emt 0:8:10]} 16. Bxe6 {[%emt 0:22:45]} fxe6 {[%emt 0:0:4]} 17. Qh3 {[%emt 0:0:18]} Kf7 {[%emt 0:2:28]} 18. O-O-O {[%emt 0:0:13]} Qxf2 {[%emt 0:1:20]} 19. Rhe1 {[%emt 0:1:52]} Rg8 {[%emt 0:1:31]} 20. Kb1 {[%emt 0:5:33]} Qg2 {[%emt 0:3:0]} 21. Qd3 {[%emt 0:1:29]} Qxh2 {[%emt 0:0:21]} 22. Ne2 {[%emt 0:2:36]} Qg2 {[%emt 0:1:18]} 23. Nxf4 {[%emt 0:9:28]} exf4 {[%emt 0:0:9]} 24. e5 {[%emt 0:1:13]} dxe5 {[%emt 0:2:47]} 25. Rxe5 {[%emt 0:1:51]} Be7 {[%emt 0:7:8]} 26. Rxe6 {[%emt 0:11:8]} Kxe6 {[%emt 0:1:38]} 27. Re1+ {[%emt 0:3:22]} Kf7 {[%emt 0:0:7]} 28. Qd4 {[%emt 0:4:57]} Qxc2+ {[%emt 0:2:23]} 29. Ka1 {[%emt 0:0:1]} Qf5 {[%emt 0:0:47]} 30. Re5 {[%emt 0:1:12]} Qxe5 {[%emt 0:0:16]} 0-1

[Event "57th Biel Festival MTO 2024"]
[White "Haimovich,Tal"]
[Black "Pisan,Kai"]
[Site "Biel"]
[Round "1.47"]
[Annotator "RC"]
[Result "1-0"]
[Date "2024.07.15"]
[WhiteElo "2330"]
[BlackElo "1950"]
[PlyCount "129"]
[TimeControl "60"]

1. e4 {[%emt 0:0:3]} c6 {[%emt 0:0:5]} 2. d3 {[%emt 0:0:30]} d5 {[%emt 0:0:30]} 3. Nd2 {[%emt 0:0:30]} e5 {[%emt 0:0:30]} 4. Ngf3 {[%emt 0:0:30]} Bd6 {[%emt 0:0:30]} 5. g3 {[%emt 0:0:30]} Nf6 {[%emt 0:0:30]} 6. Bg2 {[%emt 0:0:30]} O-O {[%emt 0:0:30]} 7. O-O {[%emt 0:0:30]} Bg4 {[%emt 0:0:30]} 8. h3 {[%emt 0:0:30]} Bxf3 {[%emt 0:0:30]} 9. Qxf3 {[%emt 0:0:30]} Nbd7 {[%emt 0:0:30]} 10. Nb3 {[%emt 0:0:30]} Qc7 {[%emt 0:0:30]} 11. Bd2 {[%emt 0:0:30]} Rfe8 {[%emt 0:0:30]} 12. h4 {[%emt 0:0:30]} Rad8 {[%emt 0:0:30]} 13. Rad1 {[%emt 0:8:14]} h6 {[%emt 0:33:6]} 14. Bc1 {[%emt 0:4:47]} Be7 {[%emt 0:8:13]} 15. Rfe1 {[%emt 0:5:32]} Nf8 {[%emt 0:9:0]} 16. c3 {[%emt 0:7:26]} dxe4 {[%emt 0:2:48]} 17. dxe4 {[%emt 0:0:30]} b5 {[%emt 0:0:30]} 18. Qe2 {[%emt 0:0:30]} a5 {[%emt 0:0:30]} 19. Nd2 {[%emt 0:0:30]} Bc5 {[%emt 0:0:30]} 20. Nf1 {[%emt 0:0:30]} Ne6 {[%emt 0:0:30]} 21. Ne3 {[%emt 0:0:30]} g6 {[%emt 0:0:30]} 22. Qf3 {[%emt 0:0:30]} Qe7 {[%emt 0:0:30]} 23. Bh3 {[%emt 0:0:30]} h5 {[%emt 0:0:30]} 24. Nc2 {[%emt 0:0:30]} Kg7 {[%emt 0:0:30]} 25. a3 {[%emt 0:0:30]} Bb6 {[%emt 0:0:30]} 26. b4 {[%emt 0:0:30]} axb4 {[%emt 0:0:30]} 27. axb4 {[%emt 0:56:36]} Rxd1 {[%emt 0:34:17]} 28. Rxd1 {[%emt 0:0:30]} Ra8 {[%emt 0:0:30]} 29. Be3 {[%emt 0:0:30]} Bxe3 {[%emt 0:0:30]} 30. Qxe3 {[%emt 0:0:30]} Rd8 {[%emt 0:0:30]} 31. Rxd8 {[%emt 0:0:30]} Nxd8 {[%emt 0:0:30]} 32. Ne1 {[%emt 0:0:30]} Qd6 {[%emt 0:0:30]} 33. Nd3 {[%emt 0:0:30]} Ne6 {[%emt 0:0:30]} 34. Bf1 {[%emt 0:0:30]} Ng4 {[%emt 0:0:30]} 35. Qa7 {[%emt 0:0:30]} Nf6 {[%emt 0:0:30]} 36. f3 {[%emt 0:0:30]} Qd7 {[%emt 0:0:30]} 37. Qb8 {[%emt 0:0:30]} Nc7 {[%emt 0:0:30]} 38. Nxe5 {[%emt 0:0:30]} Qd6 {[%emt 0:0:30]} 39. Qh8+ {[%emt 0:0:30]} Kxh8 {[%emt 0:0:30]} 40. Nxf7+ {[%emt 0:0:30]} Kg7 {[%emt 0:0:30]} 41. Nxd6 {[%emt 0:50:30]} Kf8 {[%emt 0:50:30]} 42. Nb7 {[%emt 0:0:30]} Ke7 {[%emt 0:0:30]} 43. Kf2 {[%emt 0:0:30]} Ne6 {[%emt 0:0:30]} 44. Ke3 {[%emt 0:0:30]} Nd7 {[%emt 0:0:30]} 45. Bh3 {[%emt 0:0:30]} Ne5 {[%emt 0:0:30]} 46. Na5 {[%emt 0:0:30]} Nd8 {[%emt 0:0:30]} 47. f4 {[%emt 0:0:30]} Nef7 {[%emt 0:0:30]} 48. g4 {[%emt 0:0:30]} hxg4 {[%emt 0:0:30]} 49. Bxg4 {[%emt 0:0:30]} Kd6 {[%emt 0:0:30]} 50. e5+ {[%emt 0:0:30]} Kc7 {[%emt 0:0:30]} 51. Ke4 {[%emt 0:0:30]} Nh6 {[%emt 0:0:30]} 52. Bh3 {[%emt 0:0:30]} Ng8 {[%emt 0:0:30]} 53. f5 {[%emt 0:0:30]} gxf5+ {[%emt 0:0:30]} 54. Bxf5 {[%emt 0:0:30]} Ne7 {[%emt 0:0:30]} 55. h5 {[%emt 0:0:30]} Nf7 {[%emt 0:0:30]} 56. Bg6 {[%emt 0:0:30]} Ng5+ {[%emt 0:0:30]} 57. Kf4 {[%emt 0:0:30]} Ne6+ {[%emt 0:0:30]} 58. Kg4 {[%emt 0:0:30]} Nd5 {[%emt 0:0:30]} 59. Bf7 {[%emt 0:0:30]} Ne3+ {[%emt 0:0:30]} 60. Kf3 {[%emt 0:0:30]} Ng5+ {[%emt 0:0:30]} 61. Kxe3 {[%emt 0:15:30]} Nxf7 {[%emt 0:15:30]} 62. Kf4 {[%emt 0:0:30]} Nd8 {[%emt 0:0:30]} 63. h6 {[%emt 0:0:30]} Kd7 {[%emt 0:0:30]} 64. h7 {[%emt 0:0:30]} Nf7 {[%emt 0:0:30]} 65. Kf5 {[%emt 0:0:30]} 1-0

[Event "57th Biel Festival MTO 2024"]
[White "Woltery,Nicolai"]
[Black "Smeets,Kobe"]
[Site "Biel"]
[Round "1.48"]
[Annotator "RC"]
[Result "1/2-1/2"]
[Date "2024.07.15"]
[WhiteElo "2016"]
[BlackElo "2324"]
[PlyCount "65"]
[TimeControl "60"]

1. c4 {[%emt 0:0:3]} c6 {[%emt 0:0:20]} 2. d4 {[%emt 0:0:28]} d5 {[%emt 0:0:7]} 3. cxd5 {[%emt 0:0:19]} cxd5 {[%emt 0:0:9]} 4. Bf4 {[%emt 0:1:23]} Nc6 {[%emt 0:0:18]} 5. e3 {[%emt 0:3:26]} Nf6 {[%emt 0:0:27]} 6. Bd3 {[%emt 0:1:46]} a6 {[%emt 0:2:19]} 7. Nc3 {[%emt 0:9:2]} e6 {[%emt 0:4:34]} 8. h3 {[%emt 0:1:48]} Bd6 {[%emt 0:2:29]} 9. Bxd6 {[%emt 0:0:55]} Qxd6 {[%emt 0:0:9]} 10. f4 {[%emt 0:0:13]} g5 {[%emt 0:21:38]} 11. Nge2 {[%emt 0:30:5]} Rg8 {[%emt 0:4:49]} 12. O-O {[%emt 0:10:25]} g4 {[%emt 0:6:8]} 13. h4 {[%emt 0:15:14]} Bd7 {[%emt 0:16:3]} 14. g3 {[%emt 0:2:33]} Rc8 {[%emt 0:7:43]} 15. Rc1 {[%emt 0:6:33]} Na5 {[%emt 0:7:38]} 16. e4 {[%emt 0:3:10]} dxe4 {[%emt 0:5:20]} 17. Nxe4 {[%emt 0:0:6]} Nxe4 {[%emt 0:0:19]} 18. Rxc8+ {[%emt 0:0:19]} Bxc8 {[%emt 0:0:2]} 19. Bxe4 {[%emt 0:0:20]} Bd7 {[%emt 0:3:27]} 20. Bxh7 {[%emt 0:3:58]} Rh8 {[%emt 0:0:32]} 21. Be4 {[%emt 0:0:39]} Bb5 {[%emt 0:4:25]} 22. Re1 {[%emt 0:2:32]} Nc6 {[%emt 0:10:42]} 23. Bxc6+ {[%emt 0:9:27]} Bxc6 {[%emt 0:0:10]} 24. Nc3 {[%emt 0:1:36]} Bf3 {[%emt 0:2:28]} 25. Qd2 {[%emt 0:0:9]} Kf8 {[%emt 0:3:32]} 26. Ne4 {[%emt 0:1:34]} Qb6 {[%emt 0:4:43]} 27. Qc3 {[%emt 0:2:14]} Kg7 {[%emt 0:1:35]} 28. Qc5 {[%emt 0:1:25]} Qxb2 {[%emt 0:1:44]} 29. Qe5+ {[%emt 0:0:24]} Kg8 {[%emt 0:0:22]} 30. Qg5+ {[%emt 0:1:21]} Kf8 {[%emt 0:0:8]} 31. Qd8+ {[%emt 0:0:6]} Kg7 {[%emt 0:0:13]} 32. Qf6+ {[%emt 0:0:3]} Kg8 {[%emt 0:0:15]} 33. Qg5+ {[%emt 0:2:22]} 1/2-1/2